fUSD/lending_fUSD_20241221
["ID","MTS","AMOUNT","RATE_DAILY","PERIOD"]
[346140841,1734741033025,-4300.0,0.000237,8]
[346140842,1734741033034,-201.0,0.00023702,2]
[346140844,1734741033043,-806.59494,0.0002373,2]
[346140846,1734741033053,-162.60017401,0.00023738,2]
[346140848,1734741033063,-512.63045937,0.00023773,2]
[346140849,1734741033074,-152.83249728,0.00023773,2]
[346140850,1734741033083,-162.60017401,0.00023779,2]
[346140851,1734741033092,-500.0,0.00023786,4]
[346140852,1734741033101,-500.0,0.00023786,4]
[346140853,1734741033110,-500.0,0.00023786,2]
[346140854,1734741033119,-500.0,0.00023786,2]
[346140855,1734741033129,-356.12003091,0.00023786,2]
[346140856,1734741033138,-500.0,0.00023786,4]
[346140857,1734741033147,-796.93,0.00023786,4]
[346140858,1734741033157,-500.0,0.00023786,4]
[346140859,1734741033167,-500.0,0.00023786,4]
[346140860,1734741033176,-924.26,0.00023786,4]
[346140862,1734741033185,-500.0,0.00023786,4]
[346140864,1734741033195,-500.0,0.00023786,4]
[346140866,1734741033204,-3064.03,0.00023786,4]
[346140868,1734741033213,-500.0,0.00023786,4]
[346140870,1734741033222,-500.0,0.00023786,4]
[346140872,1734741033231,-500.0,0.00023786,4]
[346140873,1734741033240,-500.0,0.00023786,4]
[346140875,1734741033250,-500.0,0.00023786,4]
[346140877,1734741033259,-500.0,0.00023786,4]
[346140879,1734741033269,-500.0,0.00023786,4]
[346140881,1734741033280,-500.0,0.00023786,4]
[346140882,1734741033290,-840.33,0.00023786,4]
[346140883,1734741033301,-500.0,0.00023787,4]
[346140884,1734741033311,-163.05,0.00023787,4]
[346140885,1734741033320,-500.0,0.00023787,4]
[346140886,1734741033330,-500.0,0.00023787,4]
[346140887,1734741033340,-500.0,0.00023787,4]
[346140888,1734741033351,-390.500006,0.00023787,4]
[346140889,1734741033361,-153.949165,0.00023787,4]
[346140890,1734741033371,-500.0,0.00023787,4]
[346140891,1734741033382,-515.71,0.00023787,4]
[346140892,1734741033391,-500.0,0.00023787,4]
[346140893,1734741033401,-1966.05440804,0.00023787,2]
[346140894,1734741033411,-500.0,0.00023787,4]
[346140895,1734741033421,-960.67,0.00023787,4]
[346140896,1734741033431,-991.23,0.00023787,4]
[346140897,1734741033440,-500.0,0.00023787,4]
[346140898,1734741033450,-649.37699846,0.00023787,4]
[346140899,1734741033459,-500.0,0.00023787,4]
[346140900,1734741033468,-500.0,0.00023787,4]
[346140901,1734741033478,-606.16,0.00023787,4]
[346140902,1734741033488,-500.0,0.00023787,4]
[346140903,1734741033497,-389.69320033,0.00023787,4]
[346140904,1734741033506,-707.23,0.00023787,4]
[346140905,1734741033516,-767.75,0.00023787,4]
[346140906,1734741033525,-1127.86,0.00023787,4]
[346140907,1734741033534,-500.0,0.00023787,4]
[346140908,1734741033543,-500.0,0.00023787,4]
[346140909,1734741033554,-500.0,0.00023787,4]
[346140910,1734741033564,-333.79091637,0.00023787,4]
[346140911,1734741033573,-556.63603995,0.00023787,4]
[346140912,1734741033583,-656.54,0.00023787,4]
[346140913,1734741033592,-500.0,0.00023787,4]
[346140914,1734741033601,-500.0,0.00023787,4]
[346140915,1734741033610,-500.0,0.00023787,4]
[346140916,1734741033619,-564.62,0.00023787,4]
[346140917,1734741033628,-500.0,0.00023787,4]
[346140918,1734741033637,-500.0,0.00023787,4]
[346140919,1734741033647,-500.0,0.00023787,4]
[346140920,1734741033656,-500.0,0.00023787,4]
[346140921,1734741033665,-500.0,0.00023787,4]
[346140922,1734741033674,-500.0,0.00023787,4]
[346140923,1734741033683,-500.0,0.00023787,4]
[346140924,1734741033692,-500.0,0.00023787,4]
[346140925,1734741033701,-500.0,0.00023787,4]
[346140926,1734741033710,-500.0,0.00023787,4]
[346140927,1734741033719,-1160.43,0.00023787,4]
[346140928,1734741033728,-500.0,0.00023787,4]
[346140929,1734741033737,-500.0,0.00023787,4]
[346140930,1734741033747,-500.0,0.00023787,4]
[346140931,1734741033756,-500.0,0.00023787,4]
[346140932,1734741033766,-500.0,0.00023787,4]
[346140933,1734741033776,-500.0,0.00023787,4]
[346140934,1734741033786,-500.0,0.00023787,4]
[346140935,1734741033796,-500.0,0.00023787,4]
[346140936,1734741033807,-500.0,0.00023787,4]
[346140937,1734741033816,-500.0,0.00023787,4]
[346140938,1734741033825,-1665.97,0.00023787,4]
[346140939,1734741033835,-500.0,0.00023787,4]
[346140940,1734741033844,-500.0,0.00023787,4]
[346140941,1734741033854,-190.81727465,0.00023787,4]
[346140950,1734741037810,-1262.0,0.00023478,2]
[346140951,1734741037819,-500.0,0.00023599,4]
[346140952,1734741037828,-500.0,0.00023786,4]
[346140953,1734741037837,-309.18272535,0.00023787,4]
[346140954,1734741037846,-500.0,0.00023787,4]
[346140955,1734741037855,-500.0,0.00023787,4]
[346140956,1734741037864,-500.0,0.00023787,4]
[346140957,1734741037873,-101539.38457418,0.00023788,2]
[346140958,1734741037922,-75001.38502516,0.00023788,2]
[346140959,1734741037932,-280.51604614,0.0002379,2]
[346140960,1734741037941,-170.68234188,0.00023798,2]
[346140961,1734741037951,-500.0,0.00023798,2]
[346140962,1734741037960,-500.0,0.00023799,4]
[346140963,1734741037970,-1000.0,0.00023799,4]
[346140964,1734741037980,-500.0,0.00023799,4]
[346140965,1734741037990,-706.33,0.00023799,4]
[346140966,1734741037999,-45720.2651,0.000238,2]
[346140967,1734741038008,-401.67,0.000238,2]
[346140968,1734741038017,-1500.0,0.000238,2]
[346140969,1734741038027,-800.0,0.000238,8]
[346140970,1734741038036,-50434.0595595,0.000238,2]
[346140971,1734741038046,-52071.74086505,0.000238,2]
[346140972,1734741038057,-162.60017401,0.00023819,2]
[346140973,1734741038066,-162.60017401,0.0002386,2]
[346140974,1734741038076,-280.51604614,0.0002387,2]
[346140975,1734741038085,-500.72341487,0.00023873,2]
[346140976,1734741038095,-500.0,0.00023873,2]
[346140977,1734741038104,-632.82127359,0.00023873,2]
[346140978,1734741038114,-500.0,0.00023873,4]
[346140979,1734741038124,-500.0,0.00023879,4]
[346140980,1734741038133,-500.0,0.00023879,4]
[346140981,1734741038142,-384.76397507,0.00023879,4]
[346140982,1734741038152,-500.0,0.00023879,4]
[346140983,1734741038161,-500.0,0.00023879,4]
[346140984,1734741038171,-500.0,0.00023879,4]
[346140985,1734741038181,-505.09486436,0.00023879,4]
[346140986,1734741038190,-504.63204276,0.00023879,4]
[346140987,1734741038200,-500.0,0.00023879,4]
[346140988,1734741038209,-500.0,0.00023879,4]
[346140989,1734741038219,-500.0,0.00023879,4]
[346140990,1734741038228,-500.0,0.00023879,4]
[346140991,1734741038237,-500.0,0.00023879,4]
[346140992,1734741038247,-500.0,0.00023879,4]
[346140993,1734741038256,-492.99,0.00023879,4]
[346140994,1734741038266,-500.0,0.00023879,4]
[346140995,1734741038275,-500.0,0.00023879,4]
[346140996,1734741038284,-500.0,0.00023879,4]
[346140998,1734741038293,-500.0,0.00023879,4]
[346141000,1734741038302,-500.0,0.00023879,4]
[346141002,1734741038312,-635.8,0.00023879,4]
[346141004,1734741038321,-500.0,0.00023879,4]
[346141006,1734741038331,-500.0,0.00023879,4]
[346141008,1734741038340,-452.94157478,0.00023879,4]
[346141010,1734741038350,-500.0,0.00023879,4]
[346141012,1734741038359,-500.0,0.00023879,4]
[346141014,1734741038369,-500.0,0.00023879,4]
[346141016,1734741038378,-500.0,0.00023879,4]
[346141018,1734741038388,-500.0,0.00023879,4]
[346141020,1734741038397,-500.0,0.00023879,4]
[346141022,1734741038406,-500.0,0.00023879,4]
[346141024,1734741038420,-329.07,0.00023879,4]
[346141026,1734741038430,-169.13256489,0.00023879,4]
[346141028,1734741038439,-500.0,0.00023879,4]
[346141030,1734741038448,-500.0,0.00023879,4]
[346141032,1734741038457,-284.76544095,0.00023879,4]
[346141034,1734741038467,-409.29,0.00023879,4]
[346141036,1734741038476,-500.0,0.00023879,4]
[346141038,1734741038485,-500.0,0.00023879,4]
[346141040,1734741038495,-500.0,0.00023879,4]
[346141042,1734741038504,-514.32768251,0.00023879,4]
[346141044,1734741038513,-500.0,0.00023879,4]
[346141046,1734741038522,-500.0,0.00023879,4]
[346141048,1734741038531,-500.0,0.00023879,4]
[346141049,1734741038540,-500.0,0.00023879,4]
[346141051,1734741038549,-500.0,0.00023879,4]
[346141053,1734741038560,-500.0,0.00023879,4]
[346141055,1734741038569,-500.0,0.00023879,4]
[346141057,1734741038578,-1177100.2776,0.0002388,2]
[346141058,1734741038587,-230.57,0.00023887,2]
[346141059,1734741038597,-1000.0,0.00023898,3]
[346141060,1734741038607,-1000.0,0.00023898,5]
[346141061,1734741038616,-1000.0,0.00023898,8]
[346141062,1734741038625,-500.0,0.00023898,4]
[346141063,1734741038634,-500.0,0.00023898,4]
[346141064,1734741038643,-500.0,0.00023898,2]
[346141065,1734741038653,-500.0,0.00023898,4]
[346141066,1734741038662,-500.0,0.00023898,2]
[346141067,1734741038672,-500.0,0.00023899,2]
[346141068,1734741038681,-29652.374775,0.000239,2]
[346141069,1734741038691,-2780.19410833,0.000239,2]
[346141070,1734741038700,-100845.80691786,0.000239,2]
[346141071,1734741038710,-162.60017401,0.000239,2]
[346141072,1734741038719,-373052.09912842,0.000239,2]
[346141073,1734741038728,-800.0,0.000239,8]
[346141074,1734741038738,-335304.0,0.00023922,2]
[346141075,1734741038747,-2110.0,0.0002395,2]
[346141076,1734741038757,-206.37,0.00023971,4]
[346141077,1734741038766,-4031.0,0.00023973,2]
[346141078,1734741038776,-164.00230055,0.00023973,2]
[346141079,1734741038785,-500.0,0.00023973,2]
[346141080,1734741038795,-500.46440031,0.00023973,2]
[346141081,1734741038805,-500.0,0.00023973,2]
[346141082,1734741038815,-280.51604614,0.0002399,2]
[346141083,1734741038824,-13426.10166764,0.00023996,14]
[346141084,1734741038834,-666.0,0.00023999,2]
[346141085,1734741038843,-500.0,0.00023999,2]
[346141086,1734741038852,-998.14924011,0.00023999,2]
[346141087,1734741038861,-150.0,0.00023999,2]
[346141088,1734741038870,-150.0,0.00023999,2]
[346141089,1734741038879,-150.0,0.00023999,2]
[346141090,1734741038889,-150.0,0.00023999,2]
[346141091,1734741038902,-150.0,0.00023999,2]
[346141092,1734741038911,-150.0,0.00023999,2]
[346141093,1734741038921,-150.0,0.00023999,2]
[346141094,1734741038931,-241.92577242,0.00023999,2]
[346141095,1734741038942,-14129.64406362,0.00024,2]
[346141096,1734741038952,-1272076.96129848,0.00024,3]
[346141097,1734741038961,-8764.62723395,0.00024,3]
[346141098,1734741038971,-812249.24078385,0.00024,30]
[346141099,1734741038980,-4280653.69318675,0.00024,2]
[346141100,1734741038990,-40000.0,0.00024,12]
[346141101,1734741039000,-4000.0,0.00024,2]
[346141102,1734741039009,-1472.0,0.00024,4]
[346141103,1734741039018,-639668.398824,0.00024,2]
[346141104,1734741039028,-9866.88896479,0.00024,14]
[346141105,1734741039038,-2023.61,0.00024,10]
[346141106,1734741039047,-200.0,0.00024,2]
[346141107,1734741039060,-500.0,0.00024,2]
[346141108,1734741039069,-503.818,0.00024,2]
[346141109,1734741039079,-500.0,0.00024,2]
[346141110,1734741039088,-500.0,0.00024,2]
[346141111,1734741039098,-500.0,0.00024,2]
[346141112,1734741039108,-500.0,0.00024,7]
[346141113,1734741039117,-500.0,0.00024,7]
[346141114,1734741039127,-500.0,0.00024,4]
[346141115,1734741039136,-500.0,0.00024,4]
[346141116,1734741039145,-34102.53144083,0.00024,2]
[346141117,1734741039155,-30172.11475918,0.00024,2]
[346141118,1734741039164,-975.24405875,0.00024,2]
[346141119,1734741039173,-154.58069815,0.00024,3]
[346141120,1734741039182,-210.04419824,0.00024,30]
[346141121,1734741039192,-18217847.60307975,0.00024,5]
[346141122,1734741039219,-562.48,0.00024,5]
[346141123,1734741039231,-1405.71535769,0.00024,5]
[346141124,1734741039242,-6576.89867219,0.00024,5]
[346141125,1734741039257,-846.08560824,0.000239,2]
[346141126,1734741039266,-9868.71354187,0.00024,5]
[346141127,1734741039277,-13677.92265122,0.00024,5]
[346141131,1734741040108,-973.96,0.00024,5]
[346141136,1734741043067,-347.06404734,0.00023787,4]
[346141137,1734741043078,-152.93595266,0.00023787,4]
[346141138,1734741043087,-417.98073234,0.00024,5]
[346141139,1734741043099,-657.41777,0.00024,5]
[346141140,1734741043111,-360.26241,0.00024,5]
[346141141,1734741043125,-3708.36142929,0.00024,5]
[346141142,1734741043185,-543.68727253,0.00024,5]
[346141166,1734741045927,-13750.0,0.00023478,2]
[346141167,1734741045944,-500.0,0.00023787,4]
[346141168,1734741045954,-33419.33085272,0.00024,5]
[346141169,1734741046046,-469.51812636,0.00024,5]
[346141170,1734741046057,-2852.5,0.00024,5]
[346141171,1734741046106,-370943.96208996,0.00024,5]
[346141172,1734741046117,-534.36519297,0.00024,5]
[346141173,1734741046165,-4103.7534242,0.00024,5]
[346141174,1734741046178,-3785.15416186,0.00024,5]
[346141175,1734741046226,-573703.13068747,0.00024,5]
[346141176,1734741046236,-6043.76105137,0.00024,5]
[346141203,1734741532205,154.15,0.00010137,2]
[346141222,1734742232388,-1679.51668762,0.00013486,2]
[346141223,1734742232406,-300.0,0.00013486,2]
[346141224,1734742232417,-299.99,0.00013486,2]
[346141225,1734742232429,-299.99,0.00013486,2]
[346141226,1734742232448,-570.73425679,0.00013486,2]
[346141227,1734742232459,-2649.76905559,0.00013486,2]
[346141228,1734742232469,-5800.0,0.00013495,2]
[346141229,1734742232477,-781.79091609,0.00013503,2]
[346141230,1734742232488,-5018.20908391,0.00013503,2]
[346141231,1734742232497,-5800.0,0.00013512,2]
[346141232,1734742232506,-5800.0,0.0001352,2]
[346141233,1734742232515,-5800.0,0.00013529,2]
[346141234,1734742232524,-5800.0,0.00013537,2]
[346141235,1734742232533,-160.77,0.00013699,2]
[346141236,1734742232543,-150.0,0.00015644,2]
[346141237,1734742232553,-1056.0,0.00015674,2]
[346141238,1734742232562,-1056.0,0.00016499,2]
[346141239,1734742232572,-154.15,0.00017184,2]
[346141240,1734742232581,-1056.0,0.00017367,2]
[346141241,1734742232591,-1056.0,0.00018281,2]
[346141242,1734742232600,-626.44,0.00018954,2]
[346141243,1734742232609,-1056.0,0.00019195,2]
[346141244,1734742232618,-250.0,0.00020018,2]
[346141245,1734742232627,-2027.04,0.00020046,2]
[346141246,1734742232637,-1056.0,0.00020155,2]
[346141247,1734742232646,-788.8,0.00020252,2]
[346141248,1734742232655,-176.77,0.00020295,2]
[346141249,1734742232664,-766.46,0.00020505,2]
[346141250,1734742232674,-300.0,0.00020945,2]
[346141251,1734742232683,-250.0,0.00020945,2]
[346141252,1734742232692,-205.10584149,0.00021163,2]
[346141253,1734742232701,-626.44,0.00021218,2]
[346141254,1734742232710,-176.77,0.00021309,2]
[346141255,1734742232719,-1000.0,0.00021454,2]
[346141259,1734742232937,-150.0,0.000216,4]
[346141260,1734742232947,-150.0,0.000216,4]
[346141261,1734742232957,-250.0,0.00021834,2]
[346141262,1734742232966,-5000.0,0.00022,2]
[346141263,1734742232976,-5000.0,0.00022,2]
[346141265,1734742232985,-289.0,0.00022027,2]
[346141267,1734742232994,-176.77,0.00022324,2]
[346141269,1734742233003,-150.99,0.00022562,2]
[346141271,1734742233012,-999.99,0.00022562,2]
[346141272,1734742233021,-9145.26081471,0.00022562,2]
[346141275,1734742233035,-468.82265936,0.00022562,2]
[346141278,1734742233059,-385.90652593,0.00022562,2]
[346141280,1734742233068,-94.39347377,0.00022562,7]
[346141282,1734742233080,-205.59652623,0.00022562,7]
[346141283,1734742233089,-391.89,0.00022562,2]
[346141284,1734742233099,-327.18,0.00022562,2]
[346141285,1734742233108,-1508.7,0.00022562,2]
[346141286,1734742233117,-22868.09,0.00022562,2]
[346141287,1734742233126,-150.99,0.00022562,2]
[346141288,1734742233136,-1861.46,0.00022562,2]
[346141289,1734742233145,-9999.99,0.00022562,2]
[346141290,1734742233155,-499.99,0.00022562,2]
[346141291,1734742233164,-20861.25,0.00022562,2]
[346141292,1734742233174,-476.79,0.00022562,2]
[346141293,1734742233183,-9999.99,0.00022562,2]
[346141294,1734742233193,-952.61,0.00022562,2]
[346141295,1734742233202,-200.0,0.0002265,2]
[346141296,1734742233211,-2780.19410839,0.00022679,2]
[346141297,1734742233221,-45340.0,0.0002277,2]
[346141298,1734742233230,-290.16,0.00022779,2]
[346141299,1734742233240,-788.8,0.00022784,2]
[346141300,1734742233250,-735.927,0.000228,2]
[346141301,1734742233260,-379.142,0.000228,2]
[346141302,1734742233274,-2700.52037105,0.00022815,2]
[346141306,1734742238233,-79.67373728,0.00022815,2]
[346141307,1734742238242,-5000.0,0.000229,2]
[346141308,1734742238252,-162.60017401,0.000229,2]
[346141309,1734742238261,-2780.19410833,0.0002295,2]
[346141310,1734742238276,-224.41283692,0.0002299,2]
[346141311,1734742238286,-500.0,0.00022998,4]
[346141312,1734742238296,-500.0,0.00022998,4]
[346141313,1734742238306,-500.0,0.00022998,4]
[346141314,1734742238317,-763.73,0.00022998,4]
[346141315,1734742238326,-500.0,0.00022998,4]
[346141316,1734742238336,-500.0,0.00022998,4]
[346141317,1734742238345,-885.75,0.00022998,4]
[346141318,1734742238354,-500.0,0.00022998,4]
[346141319,1734742238364,-500.0,0.00022998,4]
[346141320,1734742238373,-500.0,0.00022998,4]
[346141321,1734742238382,-2936.36,0.00022998,4]
[346141322,1734742238392,-500.0,0.00022998,4]
[346141323,1734742238401,-500.0,0.00022998,4]
[346141324,1734742238410,-500.0,0.00022998,4]
[346141325,1734742238419,-500.0,0.00022998,4]
[346141326,1734742238428,-500.0,0.00022998,4]
[346141327,1734742238437,-267.92240051,0.00022998,4]
[346141328,1734742238447,-153.949165,0.00022998,4]
[346141329,1734742238456,-805.32,0.00022998,4]
[346141330,1734742238466,-500.0,0.00022998,4]
[346141331,1734742238476,-500.0,0.00022998,4]
[346141332,1734742238486,-500.0,0.00022999,4]
[346141333,1734742238496,-500.0,0.00022999,4]
[346141334,1734742238506,-500.0,0.00022999,4]
[346141335,1734742238516,-500.0,0.00022999,4]
[346141336,1734742238525,-500.0,0.00022999,4]
[346141337,1734742238536,-500.0,0.00022999,4]
[346141338,1734742238546,-500.0,0.00022999,4]
[346141339,1734742238556,-500.0,0.00022999,4]
[346141340,1734742238566,-500.0,0.00022999,4]
[346141341,1734742238575,-500.0,0.00022999,4]
[346141342,1734742238585,-500.0,0.00022999,4]
[346141343,1734742238595,-500.0,0.00022999,4]
[346141344,1734742238604,-500.0,0.00022999,4]
[346141345,1734742238614,-500.0,0.00022999,4]
[346141346,1734742238623,-500.0,0.00022999,4]
[346141347,1734742238633,-229.54190755,0.00022999,4]
[346141348,1734742238642,-500.0,0.00022999,4]
[346141349,1734742238651,-500.0,0.00022999,4]
[346141350,1734742238661,-500.0,0.00022999,4]
[346141351,1734742238670,-500.0,0.00022999,4]
[346141352,1734742238679,-500.0,0.00022999,4]
[346141353,1734742238689,-500.0,0.00022999,4]
[346141354,1734742238698,-500.0,0.00022999,4]
[346141355,1734742238708,-500.0,0.00022999,4]
[346141356,1734742238717,-500.0,0.00022999,4]
[346141357,1734742238728,-500.0,0.00022999,4]
[346141358,1734742238737,-338.34405551,0.00022999,4]
[346141359,1734742238746,-500.0,0.00022999,4]
[346141360,1734742238755,-500.0,0.00022999,4]
[346141361,1734742238765,-500.0,0.00022999,4]
[346141362,1734742238774,-500.0,0.00022999,4]
[346141363,1734742238783,-607.26,0.00022999,4]
[346141364,1734742238793,-500.0,0.00022999,4]
[346141365,1734742238803,-500.0,0.00022999,4]
[346141366,1734742238812,-500.0,0.00022999,4]
[346141367,1734742238822,-500.0,0.00022999,4]
[346141368,1734742238831,-920.64,0.00022999,4]
[346141369,1734742238841,-708.51,0.00022999,4]
[346141370,1734742238851,-949.93,0.00022999,4]
[346141371,1734742238860,-500.0,0.00022999,4]
[346141372,1734742238869,-500.0,0.00022999,4]
[346141373,1734742238878,-500.0,0.00022999,4]
[346141374,1734742238887,-497.48,0.00022999,4]
[346141375,1734742238897,-500.0,0.00022999,4]
[346141376,1734742238906,-500.0,0.00022999,4]
[346141377,1734742238915,-1122.53,0.00022999,4]
[346141378,1734742238925,-735.76,0.00022999,4]
[346141379,1734742238934,-500.0,0.00022999,4]
[346141380,1734742238945,-504.32477113,0.00022999,4]
[346141381,1734742238954,-500.0,0.00022999,4]
[346141382,1734742238963,-500.0,0.00022999,4]
[346141383,1734742238974,-500.0,0.00022999,4]
[346141384,1734742238983,-500.0,0.00022999,4]
[346141385,1734742238993,-500.0,0.00022999,4]
[346141386,1734742239003,-500.0,0.00022999,4]
[346141387,1734742239012,-500.0,0.00022999,4]
[346141388,1734742239023,-500.0,0.00022999,4]
[346141389,1734742239033,-657.73,0.00022999,4]
[346141390,1734742239044,-500.0,0.00022999,4]
[346141391,1734742239056,-500.0,0.00022999,4]
[346141392,1734742239065,-500.0,0.00022999,4]
[346141393,1734742239074,-500.0,0.00022999,4]
[346141394,1734742239083,-500.0,0.00022999,4]
[346141395,1734742239093,-500.0,0.00022999,4]
[346141396,1734742239102,-500.0,0.00022999,4]
[346141397,1734742239111,-500.0,0.00022999,4]
[346141398,1734742239121,-500.0,0.00022999,4]
[346141399,1734742239130,-500.0,0.00022999,4]
[346141400,1734742239139,-500.0,0.00022999,4]
[346141401,1734742239149,-1162.53,0.00022999,4]
[346141402,1734742239158,-500.0,0.00022999,4]
[346141403,1734742239167,-500.0,0.00022999,4]
[346141404,1734742239177,-500.0,0.00022999,4]
[346141405,1734742239186,-500.0,0.00022999,4]
[346141406,1734742239195,-382.18688215,0.00022999,2]
[346141407,1734742239204,-500.0,0.00022999,4]
[346141408,1734742239214,-500.0,0.00022999,4]
[346141409,1734742239224,-500.0,0.00022999,4]
[346141410,1734742239233,-285.89,0.00022999,4]
[346141411,1734742239242,-500.0,0.00022999,4]
[346141412,1734742239251,-500.0,0.00022999,4]
[346141413,1734742239260,-500.0,0.00022999,4]
[346141414,1734742239270,-500.0,0.00022999,4]
[346141415,1734742239285,-500.0,0.00022999,4]
[346141416,1734742239294,-500.0,0.00022999,4]
[346141417,1734742239305,-500.0,0.00022999,4]
[346141418,1734742239315,-500.0,0.00022999,4]
[346141419,1734742239325,-374.5615776,0.00022999,4]
[346141420,1734742239335,-500.0,0.00022999,4]
[346141421,1734742239344,-500.0,0.00022999,4]
[346141422,1734742239355,-500.0,0.00022999,4]
[346141423,1734742239364,-500.0,0.00022999,4]
[346141424,1734742239373,-500.0,0.00022999,4]
[346141425,1734742239382,-500.0,0.00022999,4]
[346141426,1734742239392,-1668.99,0.00022999,4]
[346141427,1734742239401,-500.0,0.00022999,4]
[346141428,1734742239411,-500.0,0.00022999,4]
[346141429,1734742239420,-500.0,0.00022999,4]
[346141430,1734742239429,-500.0,0.00022999,4]
[346141431,1734742239438,-500.0,0.00022999,4]
[346141432,1734742239447,-512.36416075,0.00022999,4]
[346141433,1734742239456,-500.0,0.00022999,4]
[346141434,1734742239466,-500.0,0.00022999,4]
[346141435,1734742239475,-500.0,0.00022999,4]
[346141436,1734742239484,-500.0,0.00022999,4]
[346141437,1734742239494,-500.0,0.00022999,4]
[346141438,1734742239503,-554.75,0.00022999,4]
[346141439,1734742239512,-500.0,0.00022999,4]
[346141440,1734742239521,-500.0,0.00022999,4]
[346141441,1734742239530,-500.0,0.00022999,4]
[346141442,1734742239539,-500.0,0.00022999,4]
[346141443,1734742239549,-500.0,0.00022999,4]
[346141444,1734742239559,-500.0,0.00022999,4]
[346141445,1734742239568,-500.0,0.00022999,4]
[346141446,1734742239578,-2111175.154091,0.00023,7]
[346141447,1734742239587,-167.50891574,0.00023,2]
[346141448,1734742239596,-1829.08510743,0.00023,3]
[346141449,1734742239605,-200.0,0.00023,2]
[346141450,1734742239614,-3555.38,0.00023002,2]
[346141451,1734742239623,-2780.19410833,0.00023086,2]
[346141452,1734742239632,-827.5,0.000231,2]
[346141453,1734742239642,-150.0,0.00023205,2]
[346141454,1734742239651,-150.0,0.00023205,2]
[346141455,1734742239660,-150.0,0.00023205,2]
[346141456,1734742239669,-2780.19410833,0.00023222,2]
[346141457,1734742239679,-164.00230055,0.00023227,2]
[346141458,1734742239688,-500.0,0.00023272,4]
[346141459,1734742239697,-500.0,0.00023272,4]
[346141460,1734742239706,-500.0,0.00023272,4]
[346141461,1734742239715,-763.73,0.00023272,4]
[346141462,1734742239725,-500.0,0.00023272,4]
[346141463,1734742239734,-500.0,0.00023272,4]
[346141464,1734742239743,-885.75,0.00023272,4]
[346141465,1734742239753,-500.0,0.00023272,4]
[346141466,1734742239762,-500.0,0.00023272,4]
[346141467,1734742239771,-575.6,0.00023272,4]
[346141468,1734742239780,-2936.36,0.00023272,4]
[346141469,1734742239790,-500.0,0.00023272,4]
[346141470,1734742239799,-500.0,0.00023272,4]
[346141471,1734742239810,-500.0,0.00023272,4]
[346141473,1734742239819,-500.0,0.00023272,4]
[346141474,1734742239829,-500.0,0.00023272,4]
[346141475,1734742239838,-805.32,0.00023272,4]
[346141476,1734742239848,-500.0,0.00023272,4]
[346141477,1734742239858,-500.0,0.00023272,4]
[346141478,1734742239867,-500.0,0.00023273,4]
[346141480,1734742239877,-500.0,0.00023273,4]
[346141481,1734742239887,-500.0,0.00023273,4]
[346141482,1734742239897,-204.694041,0.00023273,4]
[346141483,1734742239906,-451.81560652,0.00023273,4]